Workbook

Sheet Kalkulator Pinjaman
B2: PINJAMAN KOLEJ | G2: RM50,000 | L2: 4067300.00%
B3: KALKULATOR
B5: Dicadangkan jumlah pembayaran balik pinjaman pelajar bulanan anda tidak melebihi 8% daripada gaji tahunan tahun pertama anda.
C7: Gabungan bayaran bulanan semasa anda ialah: | F7: =PinjamanKolej[[#Totals],[Bayaran Bulanan Semasa]] -> RM328.59 | I7: Gabungan bayaran bulanan dijadualkan anda ialah: | M7: =PinjamanKolej[[#Totals],[Bayaran Dijadualkan]] -> RM328.59
C8: Peratus pendapatan bulanan: | F8: =PinjamanKolej[[#Totals],[Bayaran Bulanan Semasa]]/AnggaranGajiBulanan -> 7.89% | I8: Peratus pendapatan bulanan: | M8: =PinjamanKolej[[#Totals],[Bayaran Dijadualkan]]/AnggaranGajiBulanan -> 7.89%
C11: BUTIRAN PINJAMAN AM | G11: DATA BAYAR BALIK PINJAMAN | J11: BUTIRAN BAYARAN
C12: No. Pinjaman | D12: Pemberi pinjaman | E12: Amaun Pinjaman | F12: Kadar Faedah Tahunan | G12: Tarikh Mula | H12: Tempoh (Thn) | I12: Tarikh Tamat | J12: Bayaran Bulanan Semasa | K12: Jumlah Faedah | L12: Bayaran Dijadualkan | M12: Bayaran Tahunan
C13: 10998M88 | D13: Pemberi pinjaman 1 | E13: RM10,000.00 | F13: 5.00% | G13: 4063400.00% | H13: 10 | I13: =IF(AND(PinjamanKolej[[#This Row],[Tarikh Mula]]>0,PinjamanKolej[[#This Row],[Tempoh (Thn)]]>0),EDATE(PinjamanKolej[[#This Row],[Tarikh Mula]],PinjamanKolej[[#This Row],[Tempoh (Thn)]]*12),"") -> 4428700.00% | J13: =IF(AND(PinjamanMulaHariIni,COUNT(PinjamanKolej[[#This Row],[Amaun Pinjaman]:[Tempoh (Thn)]])=4,PinjamanKolej[[#This Row],[Tarikh Mula]]<TODAY()),PMT(PinjamanKolej[[#This Row],[Kadar Faedah Tahunan]]/12,PinjamanKolej[[#This Row],[Tempoh (Thn)]]*12,-PinjamanKolej[[#This Row],[Amaun Pinjaman]],0,0),"") -> RM106.07 | K13: =IFERROR((PinjamanKolej[[#This Row],[Bayaran Dijadualkan]]*(PinjamanKolej[[#This Row],[Tempoh (Thn)]]*12))-PinjamanKolej[[#This Row],[Amaun Pinjaman]],"") -> RM2,727.86 | L13: =IF(COUNTA(PinjamanKolej[[#This Row],[Amaun Pinjaman]:[Tempoh (Thn)]])<>4,"",PMT(PinjamanKolej[[#This Row],[Kadar Faedah Tahunan]]/12,PinjamanKolej[[#This Row],[Tempoh (Thn)]]*12,-PinjamanKolej[[#This Row],[Amaun Pinjaman]],0,0)) -> RM106.07 | M13: =IFERROR(PinjamanKolej[[#This Row],[Bayaran Dijadualkan]]*12,"") -> RM1,272.79
C14: 20987N87 | D14: Pemberi pinjaman 2 | E14: RM8,000.00 | F14: 5.00% | G14: 4066400.00% | H14: 10 | I14: =IF(AND(PinjamanKolej[[#This Row],[Tarikh Mula]]>0,PinjamanKolej[[#This Row],[Tempoh (Thn)]]>0),EDATE(PinjamanKolej[[#This Row],[Tarikh Mula]],PinjamanKolej[[#This Row],[Tempoh (Thn)]]*12),"") -> 4431700.00% | J14: =IF(AND(PinjamanMulaHariIni,COUNT(PinjamanKolej[[#This Row],[Amaun Pinjaman]:[Tempoh (Thn)]])=4,PinjamanKolej[[#This Row],[Tarikh Mula]]<TODAY()),PMT(PinjamanKolej[[#This Row],[Kadar Faedah Tahunan]]/12,PinjamanKolej[[#This Row],[Tempoh (Thn)]]*12,-PinjamanKolej[[#This Row],[Amaun Pinjaman]],0,0),"") -> RM84.85 | K14: =IFERROR((PinjamanKolej[[#This Row],[Bayaran Dijadualkan]]*(PinjamanKolej[[#This Row],[Tempoh (Thn)]]*12))-PinjamanKolej[[#This Row],[Amaun Pinjaman]],"") -> RM2,182.29 | L14: =IF(COUNTA(PinjamanKolej[[#This Row],[Amaun Pinjaman]:[Tempoh (Thn)]])<>4,"",PMT(PinjamanKolej[[#This Row],[Kadar Faedah Tahunan]]/12,PinjamanKolej[[#This Row],[Tempoh (Thn)]]*12,-PinjamanKolej[[#This Row],[Amaun Pinjaman]],0,0)) -> RM84.85 | M14: =IFERROR(PinjamanKolej[[#This Row],[Bayaran Dijadualkan]]*12,"") -> RM1,018.23
C15: 36785LM | D15: Pemberi pinjaman 3 | E15: RM6,000.00 | F15: 4.50% | G15: 4096900.00% | H15: 10 | I15: =IF(AND(PinjamanKolej[[#This Row],[Tarikh Mula]]>0,PinjamanKolej[[#This Row],[Tempoh (Thn)]]>0),EDATE(PinjamanKolej[[#This Row],[Tarikh Mula]],PinjamanKolej[[#This Row],[Tempoh (Thn)]]*12),"") -> 4462100.00% | J15: =IF(AND(PinjamanMulaHariIni,COUNT(PinjamanKolej[[#This Row],[Amaun Pinjaman]:[Tempoh (Thn)]])=4,PinjamanKolej[[#This Row],[Tarikh Mula]]<TODAY()),PMT(PinjamanKolej[[#This Row],[Kadar Faedah Tahunan]]/12,PinjamanKolej[[#This Row],[Tempoh (Thn)]]*12,-PinjamanKolej[[#This Row],[Amaun Pinjaman]],0,0),"") -> RM62.18 | K15: =IFERROR((PinjamanKolej[[#This Row],[Bayaran Dijadualkan]]*(PinjamanKolej[[#This Row],[Tempoh (Thn)]]*12))-PinjamanKolej[[#This Row],[Amaun Pinjaman]],"") -> RM1,461.97 | L15: =IF(COUNTA(PinjamanKolej[[#This Row],[Amaun Pinjaman]:[Tempoh (Thn)]])<>4,"",PMT(PinjamanKolej[[#This Row],[Kadar Faedah Tahunan]]/12,PinjamanKolej[[#This Row],[Tempoh (Thn)]]*12,-PinjamanKolej[[#This Row],[Amaun Pinjaman]],0,0)) -> RM62.18 | M15: =IFERROR(PinjamanKolej[[#This Row],[Bayaran Dijadualkan]]*12,"") -> RM746.20
C16: 765R43 | D16: Pemberi pinjaman 4 | E16: RM4,000.00 | F16: 5.00% | G16: 4103000.00% | H16: 5 | I16: =IF(AND(PinjamanKolej[[#This Row],[Tarikh Mula]]>0,PinjamanKolej[[#This Row],[Tempoh (Thn)]]>0),EDATE(PinjamanKolej[[#This Row],[Tarikh Mula]],PinjamanKolej[[#This Row],[Tempoh (Thn)]]*12),"") -> 4285600.00% | J16: =IF(AND(PinjamanMulaHariIni,COUNT(PinjamanKolej[[#This Row],[Amaun Pinjaman]:[Tempoh (Thn)]])=4,PinjamanKolej[[#This Row],[Tarikh Mula]]<TODAY()),PMT(PinjamanKolej[[#This Row],[Kadar Faedah Tahunan]]/12,PinjamanKolej[[#This Row],[Tempoh (Thn)]]*12,-PinjamanKolej[[#This Row],[Amaun Pinjaman]],0,0),"") -> RM75.48 | K16: =IFERROR((PinjamanKolej[[#This Row],[Bayaran Dijadualkan]]*(PinjamanKolej[[#This Row],[Tempoh (Thn)]]*12))-PinjamanKolej[[#This Row],[Amaun Pinjaman]],"") -> RM529.10 | L16: =IF(COUNTA(PinjamanKolej[[#This Row],[Amaun Pinjaman]:[Tempoh (Thn)]])<>4,"",PMT(PinjamanKolej[[#This Row],[Kadar Faedah Tahunan]]/12,PinjamanKolej[[#This Row],[Tempoh (Thn)]]*12,-PinjamanKolej[[#This Row],[Amaun Pinjaman]],0,0)) -> RM75.48 | M16: =IFERROR(PinjamanKolej[[#This Row],[Bayaran Dijadualkan]]*12,"") -> RM905.82
C17: Jumlah | E17: =SUBTOTAL(109,PinjamanKolej[Amaun Pinjaman]) -> RM28,000.00 | J17: =SUBTOTAL(109,PinjamanKolej[Bayaran Bulanan Semasa]) -> RM328.59 | K17: =SUBTOTAL(109,PinjamanKolej[Jumlah Faedah]) -> RM6,901.21 | L17: =SUBTOTAL(109,PinjamanKolej[Bayaran Dijadualkan]) -> RM328.59 | M17: =SUBTOTAL(109,PinjamanKolej[Bayaran Tahunan]) -> RM3,943.03
C18: Purata | E18: =AVERAGE(PinjamanKolej[Amaun Pinjaman]) -> RM7,000.00 | F18: =AVERAGE(PinjamanKolej[Kadar Faedah Tahunan]) -> 4.88% | K18: =AVERAGE(PinjamanKolej[Jumlah Faedah]) -> RM1,725.30 | M18: =AVERAGE(PinjamanKolej[Bayaran Tahunan]) -> RM985.76
K20: Jumlah Bayar Balik Pinjaman Disatukan: | M20: =PinjamanKolej[[#Totals],[Amaun Pinjaman]]+PinjamanKolej[[#Totals],[Jumlah Faedah]] -> RM34,901.21
K22: Anggaran Pendapatan Bulanan Selepas Berijazah: | M22: =(AnggaranGajiTahunan/12) -> RM4,166.67
